fUSD/lending_fUSD_20240331
["ID","MTS","AMOUNT","RATE_DAILY","PERIOD"]
[321117220,1711900346203,-539.07,0.00056986,120]
[321117221,1711900346212,-915.41,0.00056986,120]
[321117222,1711900346222,-500.0,0.00056986,120]
[321117223,1711900346231,-500.0,0.00056986,120]
[321117224,1711900346241,-500.0,0.00056986,120]
[321117225,1711900346250,-771.12,0.00056986,120]
[321117226,1711900346260,-500.0,0.00056986,120]
[321117227,1711900346271,-544.62,0.00056986,120]
[321117228,1711900346284,-618.81,0.00056986,120]
[321117229,1711900346294,-560.35,0.00056986,120]
[321117230,1711900346303,-500.0,0.00056986,120]
[321117231,1711900346314,-500.0,0.00056986,120]
[321117232,1711900346323,-500.0,0.00056986,120]
[321117233,1711900346332,-500.0,0.00056986,120]
[321117234,1711900346342,-500.0,0.00056986,120]
[321117235,1711900346352,-500.0,0.00056986,120]
[321117236,1711900346363,-500.0,0.00056986,120]
[321117237,1711900346373,-500.0,0.00056986,120]
[321117238,1711900346383,-500.0,0.00056986,120]
[321117239,1711900346393,-502.38,0.00056986,120]
[321117240,1711900346403,-860.0,0.00056986,120]
[321117241,1711900346412,-500.0,0.00056986,120]
[321117242,1711900346422,-500.0,0.00056986,120]
[321117243,1711900346432,-500.0,0.00056986,120]
[321117244,1711900346441,-500.0,0.00056986,120]
[321117245,1711900346452,-881.22,0.00056986,120]
[321117246,1711900346461,-500.0,0.00056986,120]
[321117247,1711900346471,-500.0,0.00056986,120]
[321117248,1711900346480,-500.0,0.00056986,120]
[321117249,1711900346490,-644.32,0.00056986,120]
[321117250,1711900346500,-500.0,0.00056986,120]
[321117251,1711900346510,-500.0,0.00056986,120]
[321117252,1711900346519,-500.0,0.00056986,120]
[321117253,1711900346529,-500.0,0.00056986,120]
[321117254,1711900346539,-500.0,0.00056986,120]
[321117255,1711900346548,-496.71662904,0.00056986,120]
[321117256,1711900346558,-1276.69,0.00056986,120]
[321117257,1711900346569,-500.0,0.00056986,120]
[321117258,1711900346579,-500.0,0.00056986,120]
[321117259,1711900346589,-500.0,0.00056986,120]
[321117260,1711900346599,-500.0,0.00056986,120]
[321117261,1711900346608,-500.0,0.00056986,120]
[321117262,1711900346618,-500.0,0.00056986,120]
[321117263,1711900346627,-500.0,0.00056986,120]
[321117264,1711900346638,-500.0,0.00056986,120]
[321117265,1711900346647,-500.0,0.00056986,120]
[321117266,1711900346656,-500.0,0.00056986,120]
[321117267,1711900346666,-500.0,0.00056986,120]
[321117268,1711900346675,-511.59,0.00056986,120]
[321117269,1711900346685,-259.83,0.00056986,120]
[321117270,1711900346694,-500.0,0.00056986,120]
[321117271,1711900346703,-554.91,0.00056986,120]
[321117272,1711900346712,-545.06,0.00056986,120]
[321117273,1711900346721,-500.0,0.00056986,120]
[321117274,1711900346730,-500.0,0.00056986,120]
[321117275,1711900346741,-500.0,0.00056986,120]
[321117276,1711900346751,-688.34,0.00056986,120]
[321117277,1711900346760,-1281.67,0.00056986,120]
[321117278,1711900346770,-500.0,0.00056986,120]
[321117279,1711900346779,-1988.35,0.00056986,120]
[321117280,1711900346788,-500.0,0.00056986,120]
[321117281,1711900346797,-500.0,0.00056986,120]
[321117282,1711900346807,-500.0,0.00056986,120]
[321117283,1711900346817,-555.54,0.00056986,120]
[321117284,1711900346828,-500.0,0.00056986,120]
[321117285,1711900346838,-4923.54,0.00056986,120]
[321117286,1711900346848,-593.25,0.00056986,120]
[321117287,1711900346858,-500.0,0.00056986,120]
[321117288,1711900346868,-1037.57,0.00056986,120]
[321117289,1711900346879,-500.0,0.00056986,120]
[321117290,1711900346889,-1959.37,0.00056986,120]
[321117291,1711900346900,-539.28094833,0.00056986,120]
[321117292,1711900346910,-500.0,0.00056986,120]
[321117293,1711900346919,-500.0,0.00056986,120]
[321117294,1711900346929,-507.1,0.00056986,120]
[321117295,1711900346939,-973.96,0.00056986,120]
[321117296,1711900346949,-17432.97,0.00056986,120]
[321117297,1711900346959,-500.0,0.00056986,120]
[321117298,1711900346969,-575.53,0.00056986,120]
[321117299,1711900346978,-836.36,0.00056986,120]
[321117300,1711900346988,-664.02,0.00056986,120]
[321117301,1711900346998,-4982.73,0.00056986,120]
[321117302,1711900347008,-1206.53,0.00056986,120]
[321117303,1711900347018,-2111.34,0.00056986,120]
[321117304,1711900347028,-561.13,0.00056986,120]
[321117305,1711900347037,-535.14,0.00056986,120]
[321117306,1711900347047,-500.0,0.00056986,120]
[321117307,1711900347057,-500.0,0.00056986,120]
[321117308,1711900347067,-35203.05,0.00056986,120]
[321117309,1711900347077,-500.0,0.00056986,120]
[321117310,1711900347087,-500.0,0.00056986,120]
[321117311,1711900347097,-500.0,0.00056986,120]
[321117312,1711900347106,-500.0,0.00056986,120]
[321117313,1711900347115,-20306.49,0.00056986,120]
[321117314,1711900347126,-500.0,0.00056986,120]
[321117315,1711900347136,-500.0,0.00056986,120]
[321117316,1711900347146,-2426.71,0.00056986,120]
[321117317,1711900347156,-3158.99,0.00056986,120]
[321117318,1711900347166,-500.0,0.00056986,120]
[321117319,1711900347176,-500.0,0.00056986,120]
[321117320,1711900347186,-6583.66,0.00056986,120]
[321117321,1711900347195,-550.6,0.00056986,120]
[321117322,1711900347205,-500.0,0.00056986,120]
[321117323,1711900347215,-500.0,0.00056986,120]
[321117324,1711900347224,-500.0,0.00056986,120]
[321117325,1711900347234,-500.0,0.00056986,120]
[321117326,1711900347243,-4743.47,0.00056986,120]
[321117327,1711900347253,-649.91,0.00056986,120]
[321117328,1711900347263,-500.0,0.00056986,120]
[321117329,1711900347274,-500.0,0.00056986,120]
[321117330,1711900347285,-1008.94,0.00056986,120]
[321117331,1711900347296,-1501.81,0.00056986,120]
[321117332,1711900347305,-500.0,0.00056986,120]
[321117333,1711900347316,-500.0,0.00056986,120]
[321117334,1711900347326,-7272.15,0.00056986,120]
[321117335,1711900347336,-500.0,0.00056986,120]
[321117336,1711900347347,-500.0,0.00056986,120]
[321117337,1711900347356,-1951.74,0.00056986,120]
[321117338,1711900347368,-500.0,0.00056986,120]
[321117339,1711900347378,-1708.51,0.00056986,120]
[321117340,1711900347388,-500.0,0.00056986,120]
[321117341,1711900347397,-516.3,0.00056986,120]
[321117342,1711900347407,-2213.16,0.00056986,120]
[321117343,1711900347417,-500.0,0.00056986,120]
[321117344,1711900347427,-706.06,0.00056986,120]
[321117345,1711900347436,-500.0,0.00056986,120]
[321117346,1711900347446,-500.0,0.00056986,120]
[321117347,1711900347455,-500.0,0.00056986,120]
[321117348,1711900347465,-4238.83,0.00056986,120]
[321117349,1711900347476,-1070.8,0.00056986,120]
[321117350,1711900347486,-1153.73,0.00056986,120]
[321117351,1711900347496,-159.28248396,0.00056986,120]
[321117352,1711900347506,-506.91,0.00056986,120]
[321117353,1711900347515,-500.0,0.00056986,120]
[321117354,1711900347525,-11263.13,0.00056986,120]
[321117355,1711900347535,-500.0,0.00056986,120]
[321117356,1711900347545,-500.0,0.00056986,120]
[321117357,1711900347555,-513.12,0.00056986,120]
[321117358,1711900347565,-500.0,0.00056986,120]
[321117359,1711900347575,-6135.58,0.00056986,120]
[321117360,1711900347585,-500.0,0.00056986,120]
[321117361,1711900347595,-1063.3,0.00056986,120]
[321117362,1711900347605,-500.0,0.00056986,120]
[321117363,1711900347615,-1083.6,0.00056986,120]
[321117364,1711900347624,-1674.93,0.00056986,120]
[321117365,1711900347634,-500.0,0.00056986,120]
[321117366,1711900347644,-547.37,0.00056986,120]
[321117367,1711900347654,-1968.84,0.00056986,120]
[321117368,1711900347663,-3729.06,0.00056986,120]
[321117369,1711900347673,-500.0,0.00056986,120]
[321117370,1711900347683,-500.0,0.00056986,120]
[321117371,1711900347693,-4646.47,0.00056986,120]
[321117372,1711900347703,-2179.05,0.00056986,120]
[321117373,1711900347713,-16968.39,0.00056986,120]
[321117374,1711900347723,-500.0,0.00056986,120]
[321117375,1711900347733,-29017.57,0.00056986,120]
[321117376,1711900347743,-551.57,0.00056986,120]
[321117377,1711900347753,-584.14,0.00056986,120]
[321117378,1711900347763,-890.16,0.00056986,120]
[321117379,1711900347772,-3354.8,0.00056986,120]
[321117380,1711900347782,-500.0,0.00056986,120]
[321117381,1711900347792,-911.19,0.00056986,120]
[321117382,1711900347802,-500.0,0.00056986,120]
[321117383,1711900347812,-749.8,0.00056986,120]
[321117384,1711900347821,-770.28,0.00056986,120]
[321117385,1711900347831,-439.85074773,0.00056986,120]
[321117386,1711900347841,-1117.84,0.00056986,120]
[321117387,1711900347851,-500.0,0.00056986,120]
[321117388,1711900347861,-1829.63,0.00056986,120]
[321117389,1711900347871,-500.0,0.00056986,120]
[321117390,1711900347881,-500.0,0.00056986,120]
[321117391,1711900347890,-3744.87,0.00056986,120]
[321117392,1711900347901,-500.0,0.00056986,120]
[321117393,1711900347910,-500.0,0.00056986,120]
[321117394,1711900347920,-542.88,0.00056986,120]
[321117395,1711900347930,-500.0,0.00056986,120]
[321117396,1711900347941,-1553.34,0.00056986,120]
[321117397,1711900347950,-1915.68,0.00056986,120]
[321117398,1711900347962,-500.0,0.00056986,120]
[321117399,1711900347971,-500.0,0.00056986,120]
[321117400,1711900347981,-500.0,0.00056986,120]
[321117401,1711900347992,-500.0,0.00056986,120]
[321117402,1711900348002,-500.0,0.00056986,120]
[321117403,1711900348011,-196.747745,0.00056986,120]
[321117404,1711900348021,-500.0,0.00056986,120]
[321117405,1711900348031,-500.0,0.00056986,120]
[321117406,1711900348042,-584.91,0.00056986,120]
[321117407,1711900348051,-151.0,0.00056986,120]
[321117408,1711900348061,-196.747745,0.00056986,120]
[321117409,1711900348070,-1875.4,0.00056986,120]
[321117410,1711900348080,-882.75,0.00056986,120]
[321117411,1711900348089,-500.0,0.00056986,120]
[321117412,1711900348099,-500.0,0.00056986,120]
[321117413,1711900348109,-733.42,0.00056986,120]
[321117414,1711900348120,-500.0,0.00056986,120]
[321117415,1711900348130,-784.97,0.00056986,120]
[321117416,1711900348140,-500.0,0.00056986,120]
[321117417,1711900348151,-2559.61,0.00056986,120]
[321117418,1711900348161,-4029.59,0.00056986,120]
[321117419,1711900348171,-1741.29,0.00056986,120]
[321117420,1711900348182,-500.0,0.00056986,120]
[321117421,1711900348193,-8811.85,0.00056986,120]
[321117422,1711900348203,-612.97,0.00056986,120]
[321117423,1711900348212,-500.0,0.00056986,120]
[321117424,1711900348222,-2000.0,0.00056986,120]
[321117425,1711900348232,-2312.101622,0.00056986,120]
[321117426,1711900348242,-7506.96,0.00056986,21]
[321117427,1711900348251,-2797.36,0.00056986,120]
[321117428,1711900348261,-500.0,0.00056986,120]
[321117429,1711900348271,-1677.22,0.00056986,120]
[321117430,1711900348282,-1296.66,0.00056986,120]
[321117431,1711900348294,-500.0,0.00056986,120]
[321117432,1711900348304,-966.37,0.00056986,120]
[321117433,1711900348313,-2312.101622,0.00056986,120]
[321117434,1711900348325,-500.0,0.00056986,120]
[321117435,1711900348335,-500.0,0.00056986,120]
[321117436,1711900348344,-500.0,0.00056986,120]
[321117437,1711900348353,-151.0,0.00056986,120]
[321117438,1711900348365,-12461.24,0.00056986,120]
[321117439,1711900348374,-3203.08,0.00056986,120]
[321117440,1711900348384,-500.0,0.00056986,120]
[321117441,1711900348394,-1043.52,0.00056986,120]
[321117442,1711900348404,-4560.05,0.00056986,120]
[321117443,1711900348414,-436.499066,0.00056986,120]
[321117444,1711900348424,-524.290653,0.00056986,120]
[321117445,1711900348434,-500.0,0.00056986,120]
[321117446,1711900348444,-500.0,0.00056986,120]
[321117447,1711900348454,-1828.48,0.00056986,120]
[321117448,1711900348463,-500.0,0.00056986,120]
[321117449,1711900348473,-436.499066,0.00056986,120]
[321117450,1711900348483,-1209.33,0.00056986,120]
[321117451,1711900348493,-868.97,0.00056986,120]
[321117452,1711900348503,-500.0,0.00056986,7]
[321117453,1711900348513,-151.0,0.00056986,120]
[321117454,1711900348523,-500.0,0.00056986,120]
[321117455,1711900348533,-524.290653,0.00056986,120]
[321117456,1711900348543,-596.22,0.00056986,120]
[321117457,1711900348553,-500.0,0.00056986,120]
[321117458,1711900348563,-609.97,0.00056986,120]
[321117459,1711900348573,-8356.87,0.00056986,120]
[321117460,1711900348584,-500.0,0.00056986,120]
[321117461,1711900348594,-500.0,0.00056986,120]
[321117462,1711900348604,-1782.7,0.00056986,120]
[321117463,1711900348614,-500.0,0.00056986,120]
[321117464,1711900348623,-734.891725,0.00056986,120]
[321117465,1711900348633,-525.13,0.00056986,120]
[321117466,1711900348643,-1415.86,0.00056986,120]
[321117467,1711900348653,-1616.02,0.00056986,120]
[321117468,1711900348663,-2311.2,0.00056986,120]
[321117469,1711900348673,-12648.79,0.00056986,120]
[321117470,1711900348683,-2232.12,0.00056986,120]
[321117471,1711900348693,-500.0,0.00056986,120]
[321117472,1711900348703,-1508.33,0.00056986,120]
[321117473,1711900348714,-500.0,0.00056986,120]
[321117474,1711900348724,-500.0,0.00056986,120]
[321117475,1711900348734,-500.0,0.00056986,120]
[321117476,1711900348744,-151.0,0.00056986,30]
[321117477,1711900348753,-734.891725,0.00056986,120]
[321117478,1711900348764,-682.15,0.00056986,120]
[321117479,1711900348773,-1065.68,0.00056986,120]
[321117480,1711900348783,-500.0,0.00056986,120]
[321117481,1711900348793,-3149.36,0.00056986,120]
[321117482,1711900348803,-2930.26,0.00056986,120]
[321117483,1711900348813,-825.7454,0.00056986,120]
[321117484,1711900348823,-500.0,0.00056986,120]
[321117485,1711900348833,-825.7454,0.00056986,120]
[321117486,1711900348842,-500.0,0.00056986,120]
[321117487,1711900348852,-696.26,0.00056986,120]
[321117488,1711900348861,-500.0,0.00056986,120]
[321117489,1711900348872,-1509.76,0.00056986,120]
[321117490,1711900348881,-151.0,0.00056986,120]
[321117491,1711900348891,-515.16,0.00056986,120]
[321117492,1711900348901,-500.0,0.00056986,120]
[321117493,1711900348910,-500.0,0.00056986,120]
[321117494,1711900348920,-4982.8,0.00056986,120]
[321117495,1711900348930,-717.55,0.00056986,120]
[321117496,1711900348940,-2406.23,0.00056986,120]
[321117497,1711900348949,-500.0,0.00056986,120]
[321117498,1711900348959,-5346.73,0.00056986,120]
[321117499,1711900348969,-259.738436,0.00056986,30]
[321117500,1711900348979,-500.0,0.00056986,120]
[321117501,1711900348988,-3295.3,0.00056986,120]
[321117502,1711900348998,-688.17,0.00056986,120]
[321117503,1711900349008,-551.95,0.00056986,120]
[321117504,1711900349018,-1648.61,0.00056986,120]
[321117505,1711900349027,-752.11,0.00056986,120]
[321117506,1711900349036,-500.0,0.00056986,120]
[321117507,1711900349046,-716.5,0.00056986,120]
[321117508,1711900349057,-500.0,0.00056986,120]
[321117509,1711900349067,-694.07,0.00056986,120]
[321117510,1711900349077,-615.79,0.00056986,120]
[321117511,1711900349087,-883.93,0.00056986,120]
[321117512,1711900349097,-500.0,0.00056986,120]
[321117513,1711900349107,-403.644956,0.00056986,120]
[321117514,1711900349116,-188.385358,0.00056986,120]
[321117515,1711900349126,-500.0,0.00056986,120]
[321117516,1711900349136,-259.738436,0.00056986,30]
[321117517,1711900349146,-3973.68,0.00056986,120]
[321117518,1711900349155,-151.0,0.00056986,7]
[321117519,1711900349165,-403.644956,0.00056986,120]
[321117520,1711900349175,-1150.28,0.00056986,120]
[321117521,1711900349185,-1646.9,0.00056986,120]
[321117522,1711900349196,-1225.53,0.00056986,120]
[321117523,1711900349205,-2159.97,0.00056986,120]
[321117524,1711900349216,-500.0,0.00056986,120]
[321117525,1711900349226,-994.44,0.00056986,120]
[321117526,1711900349236,-540.97,0.00056986,120]
[321117527,1711900349472,-188.385358,0.00056986,120]
[321117528,1711900349513,-500.0,0.00056986,120]
[321117529,1711900349522,-1115.67,0.00056986,120]
[321117530,1711900349531,-500.0,0.00056986,120]
[321117531,1711900349540,-4641.87,0.00056986,120]
[321117532,1711900349550,-500.0,0.00056986,120]
[321117533,1711900349559,-8787.96,0.00056986,120]
[321117534,1711900349569,-500.0,0.00056986,120]
[321117535,1711900349578,-500.0,0.00056986,120]
[321117536,1711900349587,-500.0,0.00056986,120]
[321117537,1711900349596,-1194.34,0.00056986,120]
[321117538,1711900349607,-500.0,0.00056986,120]
[321117539,1711900349616,-500.0,0.00056986,120]
[321117540,1711900349626,-500.0,0.00056986,120]
[321117541,1711900349635,-752.64,0.00056986,120]
[321117542,1711900349645,-500.0,0.00056986,120]
[321117543,1711900349655,-151.0,0.00056986,120]
[321117544,1711900349664,-3930.82,0.00056986,120]
[321117545,1711900349674,-1715.44,0.00056986,120]
[321117546,1711900349683,-7337.25,0.00056986,120]
[321117547,1711900349693,-500.0,0.00056986,120]
[321117548,1711900349702,-500.0,0.00056986,120]
[321117549,1711900349712,-221.69,0.00056986,120]
[321117550,1711900349721,-1001.76,0.00056986,120]
[321117551,1711900349733,-1183.78,0.00056986,120]
[321117552,1711900349742,-787.48,0.00056986,120]
[321117553,1711900349751,-939.48,0.00056986,120]
[321117554,1711900349760,-596.63,0.00056986,120]
[321117555,1711900349770,-500.0,0.00056986,120]
[321117556,1711900349779,-151.0,0.00056986,120]
[321117557,1711900349789,-602.91,0.00056986,120]
[321117558,1711900349799,-163.079624,0.00056986,120]
[321117559,1711900349808,-500.0,0.00056986,120]
[321117560,1711900349818,-2310.25,0.00056986,120]
[321117561,1711900349827,-6224.16,0.00056986,120]
[321117562,1711900349837,-1425.94,0.00056986,120]
[321117563,1711900349846,-500.0,0.00056986,120]
[321117564,1711900349856,-520.6,0.00056986,120]
[321117565,1711900349865,-1026.37,0.00056986,120]
[321117566,1711900349875,-1747.53,0.00056986,120]
[321117567,1711900349884,-151.0,0.00056986,120]
[321117568,1711900349895,-1299.9,0.00056986,120]
[321117569,1711900349905,-257.832601,0.00056986,120]
[321117570,1711900349915,-6493.36,0.00056986,120]
[321117571,1711900349924,-500.0,0.00056986,120]
[321117572,1711900349934,-202.687806,0.00056986,120]
[321117573,1711900349943,-703.93,0.00056986,120]
[321117574,1711900349954,-569.5,0.00056986,120]
[321117575,1711900349964,-500.0,0.00056986,120]
[321117576,1711900349974,-534.81,0.00056986,120]
[321117577,1711900349983,-500.0,0.00056986,120]
[321117578,1711900349992,-670.0,0.00056986,120]
[321117579,1711900350002,-151.0,0.00056986,120]
[321117580,1711900350011,-151.0,0.00056986,120]
[321117581,1711900350021,-1379.27,0.00056986,120]
[321117582,1711900350030,-227.737074,0.00056986,120]
[321117583,1711900350040,-833.15,0.00056986,120]
[321117584,1711900350050,-4176.95,0.00056986,120]
[321117585,1711900350060,-950.0,0.00057,3]
[321117586,1711900350070,-500.0,0.00057051,120]
[321117587,1711900350080,-151.0,0.00057068,120]
[321117588,1711900350090,-198.78,0.00057205,120]
[321117589,1711900350100,-1239.43,0.0005726,120]
[321117590,1711900350111,-500.0,0.0005726,120]
[321117591,1711900350121,-664.59,0.0005726,2]
[321117592,1711900350131,-500.0,0.0005726,120]
[321117593,1711900350140,-427.7,0.0005726,120]
[321117594,1711900350151,-500.0,0.0005726,120]
[321117595,1711900350160,-500.0,0.0005726,120]
[321117596,1711900350170,-500.0,0.0005726,120]
[321117597,1711900350179,-500.0,0.0005726,120]
[321117598,1711900350189,-500.0,0.0005726,120]
[321117599,1711900350198,-500.0,0.0005726,120]
[321117600,1711900350208,-547.1,0.0005726,120]
[321117601,1711900350218,-500.0,0.0005726,120]
[321117602,1711900350227,-527.64,0.0005726,120]
[321117603,1711900350237,-500.0,0.0005726,120]
[321117604,1711900350246,-500.0,0.0005726,120]
[321117605,1711900350256,-500.0,0.0005726,120]
[321117606,1711900350266,-500.0,0.0005726,120]
[321117607,1711900350276,-500.0,0.0005726,120]
[321117608,1711900350286,-500.0,0.0005726,120]
[321117609,1711900350298,-500.0,0.0005726,120]
[321117610,1711900350307,-500.0,0.0005726,120]
[321117611,1711900350317,-500.0,0.0005726,120]
[321117612,1711900350326,-500.0,0.0005726,120]
[321117613,1711900350336,-500.0,0.0005726,120]
[321117614,1711900350345,-500.0,0.0005726,120]
[321117615,1711900350354,-500.0,0.0005726,120]
[321117616,1711900350364,-500.0,0.0005726,120]
[321117617,1711900350373,-500.0,0.0005726,120]
[321117618,1711900350383,-500.0,0.0005726,120]
[321117619,1711900350392,-500.0,0.0005726,120]
[321117620,1711900350402,-500.0,0.0005726,120]
[321117621,1711900350411,-500.0,0.0005726,120]
[321117622,1711900350421,-500.0,0.0005726,120]
[321117623,1711900350430,-500.0,0.0005726,120]
[321117624,1711900350440,-500.0,0.0005726,120]
[321117625,1711900350449,-500.0,0.0005726,120]
[321117626,1711900350459,-500.0,0.0005726,120]
[321117627,1711900350468,-500.0,0.0005726,120]
[321117628,1711900350477,-481.26,0.0005726,120]
[321117629,1711900350486,-500.0,0.0005726,120]
[321117630,1711900350495,-500.0,0.0005726,120]
[321117631,1711900350504,-500.0,0.0005726,120]
[321117632,1711900350513,-500.0,0.0005726,120]
[321117633,1711900350523,-500.0,0.0005726,120]
[321117634,1711900350532,-500.0,0.0005726,120]
[321117635,1711900350541,-500.0,0.0005726,120]
[321117636,1711900350550,-500.0,0.0005726,120]
[321117637,1711900350559,-317.14,0.0005726,120]
[321117638,1711900350569,-1476.31,0.0005726,120]
[321117639,1711900350578,-500.0,0.0005726,120]
[321117640,1711900350587,-500.0,0.0005726,120]
[321117641,1711900350597,-500.0,0.0005726,120]
[321117642,1711900350606,-500.0,0.0005726,120]
[321117643,1711900350615,-500.0,0.0005726,120]
[321117644,1711900350625,-500.0,0.0005726,120]
[321117645,1711900350634,-536.73,0.0005726,120]
[321117646,1711900350644,-794.23,0.0005726,120]
[321117647,1711900350653,-500.0,0.0005726,120]
[321117648,1711900350663,-500.0,0.0005726,120]
[321117649,1711900350672,-500.0,0.0005726,60]
[321117650,1711900350681,-500.0,0.0005726,120]
[321117651,1711900350690,-471.95121067,0.0005726,120]
[321117652,1711900350698,-500.0,0.0005726,120]
[321117653,1711900350708,-500.0,0.0005726,120]
[321117654,1711900350718,-500.0,0.0005726,120]
[321117655,1711900350728,-726.96,0.0005726,120]
[321117656,1711900350737,-500.0,0.0005726,50]
[321117657,1711900350747,-500.0,0.0005726,120]
[321117658,1711900350757,-500.0,0.0005726,120]
[321117659,1711900350766,-500.0,0.0005726,120]
[321117660,1711900350776,-753.06,0.0005726,120]
[321117661,1711900350785,-500.0,0.0005726,120]
[321117662,1711900350794,-500.0,0.0005726,120]
[321117663,1711900350803,-741.95,0.0005726,120]
[321117664,1711900350813,-500.0,0.0005726,120]
[321117665,1711900350823,-500.0,0.0005726,120]
[321117666,1711900350833,-500.0,0.0005726,120]
[321117667,1711900350842,-500.0,0.0005726,120]
[321117668,1711900350851,-500.0,0.0005726,120]
[321117669,1711900350861,-500.0,0.0005726,120]
[321117670,1711900350871,-500.0,0.0005726,120]
[321117671,1711900350880,-500.0,0.0005726,120]
[321117672,1711900350890,-500.0,0.0005726,120]
[321117673,1711900350899,-500.0,0.0005726,120]
[321117674,1711900350909,-500.0,0.0005726,120]
[321117675,1711900350918,-500.0,0.0005726,120]
[321117676,1711900350927,-796.42,0.0005726,120]
[321117677,1711900350937,-887.89,0.0005726,120]
[321117678,1711900350946,-500.0,0.0005726,120]
[321117679,1711900350955,-151.0,0.0005726,120]
[321117680,1711900350965,-556.88,0.0005726,120]
[321117681,1711900350974,-646.48,0.0005726,120]
[321117682,1711900350983,-500.0,0.0005726,120]
[321117683,1711900350992,-500.0,0.0005726,120]
[321117684,1711900351002,-500.0,0.0005726,120]
[321117685,1711900351012,-510.99,0.0005726,120]
[321117686,1711900351022,-413.2,0.0005726,120]
[321117687,1711900351031,-631.61425633,0.0005726,120]
[321117688,1711900351041,-849.94,0.0005726,120]
[321117689,1711900351050,-500.0,0.0005726,120]
[321117690,1711900351059,-500.0,0.0005726,120]
[321117691,1711900351069,-500.0,0.0005726,120]
[321117692,1711900351079,-500.0,0.0005726,120]
[321117693,1711900351088,-500.0,0.0005726,120]
[321117694,1711900351098,-799.12,0.0005726,120]
[321117695,1711900351108,-500.0,0.0005726,120]
[321117696,1711900351117,-500.0,0.0005726,120]
[321117697,1711900351126,-500.0,0.0005726,120]
[321117698,1711900351136,-500.0,0.0005726,120]
[321117699,1711900351145,-500.0,0.0005726,120]
[321117700,1711900351154,-500.0,0.0005726,120]
[321117701,1711900351163,-500.0,0.0005726,120]
[321117702,1711900351173,-500.0,0.0005726,120]
[321117703,1711900351182,-883.96,0.0005726,120]
[321117704,1711900351192,-500.0,0.0005726,120]
[321117705,1711900351201,-500.0,0.0005726,120]
[321117706,1711900351211,-815.7,0.0005726,120]
[321117707,1711900351220,-500.0,0.0005726,120]
[321117708,1711900351230,-804.07,0.0005726,120]
[321117709,1711900351240,-635.28,0.0005726,120]
[321117710,1711900351250,-500.0,0.0005726,120]
[321117711,1711900351259,-500.0,0.0005726,120]
[321117712,1711900351269,-375.72817218,0.0005726,120]
[321117713,1711900351279,-959.19,0.0005726,120]
[321117714,1711900351292,-683.74,0.0005726,120]
[321117715,1711900351302,-500.0,0.0005726,120]
[321117716,1711900351311,-1061.5,0.0005726,120]
[321117717,1711900351322,-525.05793834,0.0005726,120]
[321117718,1711900351331,-736.85,0.0005726,120]
[321117719,1711900351340,-500.0,0.0005726,120]